bitfinex-derivatives/quotes_ETHF0:USTF0_20260303
["timestamp","ask_amount","ask_price","bid_price","bid_amount"]
[1772555526311,1.67845122,1997.2,1995.3,1.20584007]
[1772555526711,1.68397394,1997.2,1995.3,0.00451123]
[1772555527023,1.68397394,1997.2,1994.5,6.16645]
[1772555527024,1.67845122,1996.9,1994.5,1.25306087]
[1772555527221,1.67845122,1996.7,1994.6,1.25404141]
[1772555527422,1.67845122,1996.5,1994.7,1.50469141]
[1772555527631,1.67845122,1996.1,1994.2,0.79082973]
[1772555527924,1.67845122,1995.9,1994.2,0.79548199]
[1772555528217,1.67845122,1995.9,1993.6,6.16954]
[1772555528415,1.67845122,1995.9,1992.9,6.18245242]
[1772555528615,1.94876564,1995.4,1992.9,0.01080242]
[1772555528821,1.91974756,1995.2,1992.9,0.01080242]
[1772555529024,1.91974756,1995.0,1992.9,0.07039626]
[1772555529219,1.91974756,1995.0,1992.9,0.26254825]
[1772555529518,1.91974756,1994.8,1993.0,0.24754575]
[1772555529723,1.91974756,1994.8,1992.9,0.0150025]
[1772555529913,5.00407833,1994.8,1992.9,0.0150025]
[1772555530113,1.91974756,1994.8,1993.1,0.24180829]
[1772555530317,1.92080143,1994.6,1993.3,0.24180829]
[1772555530517,6.551,1994.5,1993.5,0.24180829]
[1772555530717,6.551,1994.5,1993.7,0.44512016]
[1772555531120,0.00443829,1995.2,1993.6,6.16952]
[1772555531121,1.8191455,1995.1,1993.9,0.44512016]
[1772555531420,1.8191455,1995.1,1993.3,0.44146817]
[1772555532017,8.36921637,1995.0,1993.7,0.44132643]
[1772555532219,1.81921637,1994.9,1993.7,0.44132643]
[1772555532420,1.81921637,1994.8,1993.7,0.44132643]
[1772555533726,1.82297374,1994.8,1993.7,0.44132643]
[1772555534018,1.82297374,1994.7,1993.4,0.42340149]
[1772555534522,1.82297374,1994.5,1993.5,0.42340149]
[1772555534720,1.85276645,1994.4,1993.2,0.36381605]
[1772555535315,1.85276645,1994.2,1993.2,0.36381605]
[1772555535513,0.00443829,1995.2,1993.2,0.36381605]
[1772555535514,1.85276645,1994.1,1993.2,0.36381605]
[1772555535918,1.85276645,1994.1,1992.9,0.37502081]
[1772555536214,1.85280809,1993.9,1992.9,0.37502081]
[1772555536420,1.85280809,1995.1,1993.1,0.35627929]
[1772555536619,1.85280809,1994.9,1993.1,0.35627929]
[1772555538626,1.85280809,1994.9,1992.9,0.36512713]
[1772555539129,1.85280809,1994.9,1992.9,0.0150025]
[1772555539425,1.85280809,1994.9,1992.9,0.38033672]
[1772555539826,1.90597863,1994.7,1992.9,0.38033672]
[1772555540325,1.90597863,1994.5,1992.9,0.38033672]
[1772555541122,1.90597863,1994.4,1993.1,0.33900283]
[1772555542229,1.90597863,1994.2,1993.1,0.33900283]
[1772555542524,1.90597863,1994.0,1992.9,0.2658825]
[1772555542725,1.90597863,1993.8,1992.9,0.0150025]
[1772555542925,1.90597863,1993.7,1992.9,0.0150025]
[1772555544427,1.90597863,1993.5,1992.9,0.0150025]
[1772555544926,1.90597863,1993.5,1992.1,0.28286675]
[1772555545125,1.90597863,1993.5,1991.7,0.52998568]
[1772555545430,0.00587364,1993.8,1991.7,0.25103]
[1772555545431,1.90597863,1993.3,1991.7,0.25103]
[1772555545728,1.90597863,1993.3,1991.1,6.7072674]
[1772555545924,1.90597863,1993.1,1991.5,0.00504486]
[1772555546125,1.90597863,1992.9,1991.6,0.25104]
[1772555546324,1.90597863,1992.7,1991.9,0.27604889]
[1772555546525,1.90597863,1992.7,1991.6,0.27604889]
[1772555546822,1.90597863,1992.7,1991.2,6.42804]
[1772555546823,1.90597863,1992.7,1990.2,0.27444763]
[1772555547027,1.90597863,1992.5,1990.8,0.27444763]
[1772555547226,1.90597863,1992.3,1990.7,0.27052216]
[1772555547419,1.90597863,1992.1,1991.0,0.25112]
[1772555547723,1.90597863,1992.0,1991.0,0.00479048]
[1772555549232,1.90597863,1991.8,1991.0,0.00479048]
[1772555550027,1.90597863,1991.8,1990.1,0.24143007]
[1772555550626,1.90597863,1991.8,1990.3,0.27547128]
[1772555550928,1.90597863,1991.8,1990.6,0.25117]
[1772555551331,1.90597863,1991.8,1990.8,0.25114]
[1772555551536,1.90597863,1991.8,1990.9,0.27184866]
[1772555552037,1.90597863,1991.7,1990.6,0.27179969]
[1772555552340,1.90597863,1991.7,1990.3,0.52376136]
[1772555552635,1.90597863,1991.7,1990.3,0.25590392]
[1772555552934,1.90597863,1991.7,1990.4,0.24501885]
[1772555553141,1.90597863,1991.7,1990.8,0.24103744]
[1772555553336,1.90597863,1992.0,1991.1,0.24103744]
[1772555553640,1.90597863,1992.0,1991.1,0.49213744]
[1772555553835,1.90597863,1992.0,1991.2,0.24100624]
[1772555554040,0.00489547,1992.1,1991.2,0.24100624]
[1772555554232,1.90597863,1992.6,1991.6,0.23214401]
[1772555554437,1.90597863,1992.6,1991.5,0.25105]
[1772555554636,1.90597863,1992.6,1991.3,0.23214401]
[1772555554837,1.90597863,1992.6,1990.6,0.19281384]
[1772555555238,1.90597863,1992.2,1990.6,0.19281384]
[1772555555440,1.90597863,1992.0,1990.6,0.19281384]
[1772555555936,1.90597863,1992.0,1990.5,0.25118]
[1772555556241,1.99938817,1991.8,1990.0,0.25124]
[1772555556639,1.99938817,1991.8,1990.0,6.43192]
[1772555556841,1.99938817,1991.8,1990.0,6.80324]
[1772555557036,1.99938817,1991.8,1990.0,0.25612251]
[1772555557231,1.99938817,1991.8,1990.3,0.29780773]
[1772555557638,1.99938817,1991.8,1990.2,0.25122]
[1772555558034,1.99938817,1991.8,1990.2,0.54457825]
[1772555558237,1.99938817,1991.8,1990.5,0.28832689]
[1772555558538,2.01350007,1992.5,1991.2,0.25108]
[1772555558739,2.01350007,1992.5,1990.7,0.52659762]
[1772555558938,2.01350007,1992.5,1990.7,0.27544762]
[1772555559536,2.0298362,1992.2,1990.6,0.25116]
[1772555559743,2.0298362,1992.2,1990.4,0.27044327]
[1772555560039,2.0298362,1992.2,1990.8,0.27054557]
[1772555560240,2.0298362,1992.2,1991.0,0.26691332]
[1772555560541,2.0298362,1992.2,1991.2,0.26691332]
[1772555561046,2.0298362,1992.2,1991.3,0.25108]
[1772555561243,2.0298362,1992.2,1991.3,0.46776057]
[1772555561939,2.0298362,1992.2,1991.3,0.25108]
[1772555562242,2.0298362,1992.2,1991.0,0.21683678]
[1772555562438,2.0298362,1992.2,1991.4,0.2117669]
[1772555562741,2.14333249,1992.5,1991.7,0.25103]
[1772555563335,2.14333249,1992.5,1991.4,0.00421408]
[1772555564241,2.14314732,1992.3,1991.4,0.00421408]
[1772555565642,2.14314732,1992.3,1991.5,0.25105]
[1772555565844,2.15633399,1992.6,1991.5,0.25105]
[1772555566643,2.15633399,1992.6,1991.5,6.42699]
[1772555566843,2.15633399,1992.6,1991.9,0.251]
[1772555567243,0.00536322,1992.6,1991.9,0.251]
[1772555567647,2.16800689,1992.9,1991.9,0.251]
[1772555568150,2.16779122,1993.6,1992.3,0.25095]
[1772555568544,2.16779122,1993.6,1992.7,0.2509]
[1772555568750,2.17319154,1993.6,1992.7,0.2509]
[1772555569347,2.17319154,1993.6,1992.2,2.32712947]
[1772555569348,2.17319154,1993.6,1992.2,0.25096]
[1772555569544,2.17319154,1993.6,1992.2,6.80096]
[1772555569947,2.17319154,1993.6,1992.2,12.97481]
[1772555570148,2.17319154,1993.6,1992.6,0.25091]
[1772555570550,0.00540032,1993.6,1992.6,6.42354]
[1772555571049,2.25374196,1993.6,1992.6,0.25091]
[1772555571347,2.25374196,1993.6,1992.8,0.25089]
[1772555571554,2.24834164,1994.4,1993.2,0.25083]
[1772555571849,2.24834164,1994.4,1993.4,6.4209]
[1772555572049,2.24802654,1994.9,1993.8,0.25076]
[1772555572352,2.24802654,1995.4,1994.3,0.25069]
[1772555572553,2.25184993,1995.4,1994.6,0.25065]
[1772555572753,2.25184993,1995.4,1994.3,0.0045481]
[1772555573453,2.25184993,1995.4,1993.4,6.79881]
[1772555573454,2.24709655,1995.2,1993.4,6.79881]
[1772555573653,2.24709655,1995.0,1993.4,6.79881]
[1772555574155,2.24709655,1995.0,1993.5,6.548]
[1772555574452,2.24709655,1995.0,1993.5,6.55195283]
[1772555574748,2.24709655,1995.0,1993.6,12.96834]
[1772555575549,2.24709655,1995.0,1993.6,0.25079]
[1772555575751,2.24913699,1994.8,1993.5,0.00395283]
[1772555575954,2.24913699,1994.7,1993.5,0.00395283]
[1772555576949,2.24913699,1994.7,1993.5,0.25475283]
[1772555577149,2.24913699,1994.7,1993.5,0.00395283]
[1772555579859,2.24313813,1994.6,1992.9,10.289]
[1772555580053,2.24313813,1994.2,1992.3,10.289]
[1772555580258,3.09580392,1994.3,1992.6,6.42354]
[1772555580259,2.24313813,1994.0,1992.6,6.42354]
[1772555580460,2.24313813,1994.0,1992.6,12.97054]
[1772555580657,2.24313813,1994.0,1993.0,0.25086]
[1772555580860,2.24313813,1994.0,1992.6,0.00581986]
[1772555580861,2.24860839,1994.0,1992.6,0.00581986]
[1772555581361,2.24860839,1994.0,1991.6,23.45268631]
[1772555581368,2.24814099,1993.8,1991.4,0.25107]
[1772555581558,2.24523106,1993.4,1991.4,0.25107]
[1772555582164,2.24492592,1993.0,1990.9,0.25113]
[1772555582358,2.24492592,1992.8,1990.9,6.43258746]
[1772555582562,2.24492592,1992.8,1990.9,0.25469746]
[1772555583261,2.24492592,1992.8,1990.9,6.80269746]
[1772555583461,2.24492592,1992.8,1990.9,12.98054746]
[1772555583661,2.24492592,1992.8,1990.9,6.80269746]
[1772555583864,2.24492592,1992.8,1990.9,0.25469746]
[1772555584063,2.24492592,1992.8,1991.2,0.25108]
[1772555584255,2.24492592,1992.8,1991.2,6.42795]
[1772555584860,2.24492592,1992.8,1991.2,0.25108]
[1772555585365,2.24492592,1992.8,1991.2,6.42799]
[1772555585562,2.24492592,1992.8,1991.6,6.42676]
[1772555585765,2.22391823,1993.4,1992.2,6.42477]
[1772555585964,2.22391823,1993.4,1992.2,0.25095]
[1772555586166,2.22391823,1993.4,1992.5,6.42384]
[1772555586365,2.22391823,1993.9,1992.5,0.25613377]
[1772555587360,2.22391823,1993.9,1992.9,0.25088]
[1772555587662,0.00547026,1994.0,1993.3,0.25083]
[1772555587864,2.23018725,1994.0,1992.7,6.8009]
[1772555588055,2.23018725,1994.0,1992.7,0.2509]
[1772555588466,2.23018725,1994.0,1992.7,6.4232]
[1772555588661,2.23018725,1994.0,1992.7,0.2509]
[1772555588965,2.23018725,1994.0,1992.5,0.00521377]
[1772555589264,2.23057504,1993.8,1992.5,0.00521377]
[1772555589465,2.23057504,1993.6,1992.5,0.00521377]
[1772555589659,2.23057504,1993.6,1991.6,6.80103]
[1772555590067,2.22766155,1993.4,1991.6,0.25103]
[1772555590568,2.22766155,1993.4,1991.6,0.2549522]
[1772555590961,2.22836346,1993.0,1991.6,0.0039222]
[1772555591161,2.22836346,1992.8,1991.6,0.0039222]
[1772555592164,2.22836346,1992.8,1991.6,0.2549622]
[1772555592963,2.22836346,1992.8,1991.6,0.0039222]
[1772555593162,2.21707103,1992.6,1990.6,0.25117]
[1772555593357,2.21707103,1992.6,1990.6,6.43001]
[1772555594064,2.2232336,1992.6,1990.6,0.00486539]
[1772555594261,2.2232336,1992.6,1991.1,0.2511]
[1772555594864,2.2232336,1992.6,1991.5,6.42707]
[1772555595063,2.2232336,1992.6,1991.5,0.25105]
[1772555596364,2.2232336,1992.6,1991.5,6.80305]
[1772555596563,2.2232336,1992.6,1991.5,0.25105]
[1772555596768,2.21531216,1992.5,1991.5,0.25105]
[1772555597261,2.21531216,1992.5,1991.0,0.25111]
[1772555597459,2.21531216,1992.5,1991.0,6.80311]
[1772555597660,2.21531216,1992.5,1991.2,0.25109]
[1772555601368,2.21531216,1992.5,1991.6,0.25104]
[1772555601763,2.21531216,1992.5,1991.1,6.8031]
[1772555601963,2.21531216,1992.5,1991.1,0.2511]
[1772555603769,2.21531216,1992.5,1990.6,0.00486539]
[1772555603971,2.23012108,1992.4,1990.6,0.25602539]
[1772555604168,2.23012108,1992.0,1990.6,0.00486539]
[1772555604473,2.23012108,1991.8,1990.6,0.00486539]
[1772555604867,2.23012108,1991.8,1990.1,0.25122]
[1772555605963,2.23012108,1991.8,1990.1,0.25680492]
[1772555606969,2.22872443,1991.6,1990.1,0.25680492]
[1772555608268,2.2284061,1991.2,1990.1,0.00558492]
[1772555608469,2.22561364,1991.0,1989.6,0.25129]
[1772555609371,2.22561257,1990.8,1989.3,0.01243427]
[1772555609575,2.22561257,1990.8,1989.3,0.01889687]
[1772555609872,2.22529678,1990.6,1989.4,0.25132]
[1772555610271,2.22529678,1990.6,1989.3,0.01889687]
[1772555611072,2.22529678,1990.6,1988.4,0.25144]
[1772555611271,2.22529678,1990.6,1989.2,0.25133]
[1772555612068,2.22529678,1990.6,1989.2,0.00631144]
[1772555612970,2.22529678,1990.6,1988.4,0.08619169]
[1772555613166,4.15719823,1990.7,1987.3,10.02538142]
[1772555613167,2.01990458,1990.3,1988.3,0.08735811]
[1772555613367,2.01990458,1990.1,1988.3,0.08735811]
[1772555613567,2.01990458,1990.1,1988.2,0.25147]
[1772555613975,2.01990458,1990.1,1988.2,0.25720293]
[1772555614476,2.01990458,1990.1,1988.2,0.00573293]
[1772555615073,2.00931413,1989.9,1988.2,0.10957435]
[1772555615373,2.00931413,1989.7,1988.2,0.10957435]
[1772555615676,2.0143683,1989.7,1988.2,0.00573293]
[1772555616076,2.33648327,1989.7,1987.6,6.18814]
[1772555616371,2.00633452,1989.5,1987.9,0.09953258]
[1772555616673,2.00633452,1989.5,1987.8,0.25152]
[1772555617074,2.00633452,1989.5,1987.8,0.00646365]
[1772555617273,2.04002083,1989.3,1987.8,0.00646365]
[1772555617474,2.04002083,1989.3,1987.8,0.03391149]
[1772555617673,2.04002083,1989.3,1988.0,0.02773376]
[1772555617868,2.04002083,1989.3,1988.4,0.02773376]
[1772555618275,6.21252606,1990.9,1988.8,1.88389086]
[1772555618276,1.90284341,1990.9,1988.8,1.88389086]
[1772555618481,1.90284341,1990.7,1988.9,1.88389086]
[1772555618772,1.90284341,1990.7,1988.6,1.88389086]
[1772555618977,1.90284341,1989.9,1987.9,1.88389086]
[1772555619176,1.90284341,1989.7,1987.9,1.88389086]
[1772555619375,1.90284341,1989.5,1987.6,1.88389086]
[1772555619674,1.90284341,1989.3,1987.6,1.88389086]
[1772555619878,1.90284341,1989.3,1987.3,1.88389086]
[1772555620079,1.90284341,1988.9,1987.3,1.88389086]
[1772555620378,1.90284341,1988.7,1987.5,1.88389086]
[1772555620572,0.0040855,1989.7,1987.8,1.89035451]
[1772555620573,6.557,1988.6,1987.8,1.89035451]
[1772555620769,1.90284341,1988.7,1987.8,1.89035451]
[1772555621172,6.557,1988.8,1987.8,1.89035451]
[1772555621369,6.557,1988.8,1987.8,0.00646365]
[1772555621370,1.90284341,1988.7,1987.8,0.00646365]
[1772555621569,1.90284341,1988.6,1987.8,0.00646365]
[1772555621874,1.90284341,1988.6,1987.2,1.88389086]
[1772555622082,1.90284341,1988.4,1987.2,1.88389086]
[1772555622280,1.90284341,1988.4,1987.4,1.88389086]
[1772555622683,8.45984341,1988.7,1987.6,1.88389086]
[1772555622881,8.45984341,1988.7,1987.6,1.89028688]
[1772555623182,1.90284341,1988.7,1987.8,1.88389086]
[1772555623682,1.90284341,1989.2,1988.0,1.88389086]
[1772555624278,1.90284341,1989.1,1987.6,0.00639602]
[1772555624779,1.90284341,1988.8,1987.6,0.00639602]
[1772555625281,1.90284341,1987.9,1986.7,2.13555086]
[1772555625477,1.90284341,1987.8,1986.7,2.13555086]
[1772555626284,1.90919294,1987.8,1986.7,2.1408704]
[1772555627179,1.90284341,1987.6,1986.7,0.25697954]
[1772555627580,1.90284341,1987.6,1986.7,2.1408704]
[1772555627789,0.00634953,1987.8,1987.0,2.03383191]
[1772555628386,1.99650361,1987.8,1986.7,2.03915145]
[1772555628590,1.99015408,1987.6,1986.7,0.00531954]
[1772555628788,1.99015408,1987.6,1986.7,2.03915145]
[1772555629286,1.99015408,1987.6,1986.8,2.28548191]
[1772555629889,1.99015408,1987.6,1986.7,0.00531954]
[1772555630291,1.99015408,1987.6,1986.7,2.03915145]
[1772555630793,6.56434953,1987.8,1986.7,2.29080145]
[1772555631090,3.11178848,1988.8,1987.1,2.28543191]
[1772555631091,1.99015408,1988.8,1987.1,2.28543191]
[1772555631282,1.99015408,1988.7,1987.1,2.03383191]
[1772555631488,1.99015408,1988.7,1986.8,2.03383191]
[1772555631686,1.99015408,1988.2,1986.7,0.00531954]
[1772555631887,1.99015408,1988.0,1985.5,6.19468]
[1772555632087,1.99015408,1987.0,1984.7,8.23094191]
[1772555632289,1.99015408,1986.8,1984.8,2.03383191]
[1772555632492,12.94214244,1987.5,1985.0,2.03383191]
[1772555632493,1.99015408,1986.6,1985.0,2.03383191]
[1772555632696,1.99015408,1986.4,1985.0,2.03383191]
[1772555632996,1.99015408,1986.2,1985.0,2.03996088]
[1772555633289,1.99015408,1986.2,1985.0,0.00612897]
[1772555633793,1.99015408,1985.5,1984.0,2.03383191]
[1772555634097,1.99015408,1985.3,1984.3,2.03383191]
[1772555634294,1.99015408,1985.6,1984.5,2.03383191]
[1772555634594,1.99015408,1985.9,1984.3,2.03383191]
[1772555634793,1.99015408,1985.9,1984.7,2.03383191]
[1772555634993,1.99015408,1985.9,1984.6,0.25193]
[1772555635290,1.99015408,1985.8,1984.4,2.03383191]
[1772555635590,1.99015408,1985.8,1984.3,0.00501465]
[1772555635790,1.99015408,1985.6,1984.3,0.00501465]
[1772555635992,1.99015408,1985.5,1984.4,2.03383191]
[1772555636593,1.99015408,1986.3,1984.6,2.03383191]
[1772555636895,1.99015408,1986.1,1984.9,2.28572191]
[1772555637088,1.99015408,1986.1,1985.0,2.03383191]
[1772555637291,1.99015408,1986.0,1985.0,2.03383191]
[1772555637890,1.99015408,1986.3,1985.2,2.03383191]
[1772555638095,0.00449218,1986.4,1985.4,2.03383191]
[1772555638299,1.99464626,1986.4,1985.6,2.03383191]
[1772555638696,1.99015408,1987.2,1986.0,2.03383191]
[1772555638895,1.99015408,1987.2,1986.1,2.03383191]
[1772555639696,0.00373913,1987.2,1986.1,2.0383523]
[1772555639899,1.99389321,1987.2,1986.1,2.0383523]
[1772555640403,0.00373913,1987.2,1986.5,2.03383191]
[1772555640804,0.00373913,1987.2,1986.1,2.0383523]
[1772555640805,1.99015408,1987.1,1986.1,2.0383523]
[1772555641300,1.99015408,1986.5,1985.2,2.03383191]
[1772555641506,1.99015408,1986.3,1985.1,0.25185]
[1772555641698,1.99015408,1986.1,1984.9,2.03383191]
[1772555641998,1.99015408,1985.9,1984.9,2.28572191]
[1772555642199,1.99015408,1986.2,1984.9,2.29024788]
[1772555642794,1.99015408,1986.6,1985.4,2.03383191]
[1772555642998,1.99015408,1986.6,1985.6,2.03383191]
[1772555643395,1.99015408,1986.2,1985.3,2.03383191]
[1772555643998,1.99015408,1986.1,1985.0,2.03383191]
[1772555644205,1.99015408,1986.1,1984.9,2.03835788]
[1772555644403,1.99015408,1986.4,1985.1,2.03383191]
[1772555644994,6.56,1986.7,1985.7,2.03383191]
[1772555644995,1.99015408,1986.7,1985.7,2.03383191]
[1772555645203,1.99015408,1987.1,1986.1,2.03383191]
[1772555645605,1.99015408,1987.0,1985.7,2.03383191]
[1772555646004,1.99015408,1986.8,1985.7,2.03383191]
[1772555646197,1.99015408,1986.8,1985.4,2.28565191]
[1772555646402,1.99015408,1986.8,1985.4,0.25182]
[1772555646706,1.99015408,1986.4,1985.4,2.28565191]
[1772555646902,1.99015408,1986.4,1985.4,2.03383191]
[1772555647100,3.89805166,1986.3,1985.4,2.03383191]
[1772555647301,1.99015408,1986.3,1985.4,2.03383191]
[1772555647799,0.00373913,1987.2,1986.0,2.03383191]
[1772555647800,1.99015408,1987.1,1986.0,2.03383191]
[1772555647996,3.89805166,1987.0,1986.0,2.03383191]
[1772555648197,0.00373913,1987.2,1986.3,2.28554191]
[1772555648398,0.00373913,1987.2,1986.5,8.47707191]
[1772555648706,1.99015408,1987.5,1986.6,2.03383191]
[1772555649203,3.89805166,1987.5,1986.6,2.03383191]
[1772555649403,1.99015408,1987.5,1986.6,2.03383191]
[1772555649603,1.99395447,1987.5,1986.6,2.03383191]
[1772555650003,1.99395447,1987.5,1986.5,0.25169]
[1772555650307,1.99015408,1987.3,1985.7,2.03383191]
[1772555650507,1.99015408,1987.1,1985.4,2.03383191]
[1772555650709,1.99015408,1986.7,1985.4,2.03383191]
[1772555651109,1.99015408,1986.2,1984.8,2.03383191]
[1772555651309,1.99015408,1986.2,1984.8,2.03934534]
[1772555651507,1.99015408,1986.1,1984.2,2.84445083]
[1772555651709,1.99015408,1985.5,1984.3,2.28580191]
[1772555651909,1.99015408,1985.4,1984.3,2.28580191]
[1772555652111,1.99015408,1985.4,1984.4,2.03383191]
[1772555652611,1.99015408,1985.4,1984.4,0.00628022]
[1772555652612,3.89805166,1985.2,1984.4,0.00628022]
[1772555653007,1.99426717,1985.4,1984.4,2.04011213]
[1772555653407,0.00411309,1985.4,1984.6,2.03383191]
[1772555653605,1.99015408,1985.8,1984.8,2.03383191]
[1772555653908,1.90789758,1985.7,1984.8,2.03383191]
[1772555654111,1.99015408,1985.6,1984.4,0.00628022]
[1772555654414,1.99015408,1985.3,1984.4,2.04011213]
[1772555654612,1.99015408,1985.7,1984.6,2.03383191]
[1772555654818,1.99015408,1986.0,1984.9,2.28572191]
[1772555655311,1.99015408,1986.3,1985.3,2.28567191]
[1772555655709,1.90789758,1986.1,1985.3,2.28567191]
[1772555655918,1.99483371,1986.3,1985.3,2.28567191]
[1772555656218,1.90789758,1985.9,1985.3,0.25184]
[1772555656516,3.89805166,1985.9,1985.0,2.03383191]
[1772555656711,1.90789758,1985.8,1985.0,2.03383191]
[1772555657214,1.90789758,1985.5,1984.8,0.2519]
[1772555657414,1.99015408,1985.7,1984.8,0.2519]
[1772555657715,1.99015408,1986.0,1985.0,0.25188]
[1772555658308,1.99015408,1986.0,1984.5,0.4724138]
[1772555658608,1.99015408,1986.0,1984.5,0.25194]
[1772555658814,1.91415831,1985.8,1984.5,0.25194]
[1772555659014,1.91415831,1985.8,1984.5,0.53866089]
[1772555659213,1.91415831,1985.6,1984.5,0.53866089]
[1772555659715,1.91415831,1985.6,1984.5,0.25194]
[1772555660010,1.91415831,1985.6,1984.4,0.00628022]
[1772555661416,2.08081221,1985.4,1984.4,0.00628022]
[1772555661609,2.08081221,1985.4,1984.4,0.25822022]
[1772555661814,2.08081221,1985.4,1984.4,0.00628022]
[1772555662212,2.08081221,1985.2,1984.4,0.00628022]
[1772555662816,2.08081221,1985.9,1984.7,0.39241454]
[1772555663119,2.08081221,1985.9,1984.9,0.25188]
[1772555663319,2.08081221,1985.9,1984.4,0.64710056]
[1772555663813,2.08081221,1985.7,1984.4,0.25823022]
[1772555664020,2.08081221,1985.7,1984.6,0.25193]
[1772555664221,2.08081221,1985.6,1984.6,0.25193]
[1772555664819,2.08081221,1985.6,1984.4,0.00628022]
[1772555665622,2.08081221,1985.4,1984.5,0.25194]
[1772555666014,2.08081221,1985.4,1984.5,0.65593371]
[1772555666325,2.08081221,1985.4,1984.7,0.25191]
[1772555666520,8.64181221,1985.7,1984.7,0.25191]
[1772555666820,2.08081221,1986.0,1985.1,6.44781]
[1772555667016,2.08081221,1986.0,1985.5,0.25181]
[1772555667317,2.08549184,1986.3,1985.5,0.25181]
[1772555667522,0.00467963,1986.3,1985.9,0.25175]
[1772555667824,2.08081221,1986.6,1985.9,0.2557357]
[1772555668625,0.004333,1986.6,1985.9,0.64544886]
[1772555669024,0.004333,1986.6,1985.9,0.2557357]
[1772555669520,0.004333,1986.6,1985.9,0.0039857]
[1772555669521,2.08514521,1986.6,1985.9,0.0039857]
[1772555669724,2.08081221,1986.5,1985.4,0.25182]
[1772555670128,2.08081221,1986.5,1984.9,0.25189]
[1772555670325,2.08081221,1986.3,1985.1,0.25186]
[1772555670525,2.08081221,1986.1,1985.3,0.25184]
[1772555670726,0.004333,1986.6,1985.5,0.25181]
[1772555670727,2.08081221,1986.4,1985.5,0.25181]
[1772555671230,2.08081221,1986.4,1985.3,0.0049816]
[1772555671832,2.08081221,1986.4,1985.4,0.25183]
[1772555672128,2.08081221,1986.4,1985.4,0.58156185]
[1772555672327,2.08081221,1986.4,1985.6,0.2518]
[1772555673225,2.08081221,1986.4,1985.3,0.0049816]
[1772555673625,2.08081221,1986.4,1985.4,0.25183]
[1772555674825,2.08081221,1986.4,1985.3,0.0049816]
[1772555675326,2.08081221,1986.2,1985.3,0.0049816]
[1772555675629,2.08081221,1986.2,1985.3,0.2568116]
[1772555675826,6.564333,1986.6,1985.7,0.25178]
[1772555675827,2.08081221,1986.5,1985.7,0.25178]
[1772555676228,2.08081221,1986.5,1985.7,0.56908705]
[1772555676429,2.08081221,1986.5,1985.7,6.76315705]
[1772555676630,0.004333,1986.6,1985.7,6.76315705]
[1772555676826,0.004333,1986.6,1985.9,0.25176]
[1772555677027,0.004333,1986.6,1985.9,0.56472294]
[1772555677228,2.08514521,1986.6,1985.4,0.25182]
[1772555677628,2.08514521,1986.6,1985.6,0.2518]
[1772555678232,2.08514521,1986.6,1985.8,0.25178]
[1772555678434,2.08514521,1986.6,1985.4,0.30606791]
[1772555678630,2.08514521,1986.6,1985.5,0.55059044]
[1772555679131,2.08514521,1986.6,1985.7,0.55057044]
[1772555679330,2.08514521,1986.6,1985.9,0.25176]
[1772555679526,2.08081221,1987.4,1986.7,0.25166]
[1772555680427,0.00650674,1987.4,1986.7,0.25730453]
[1772555680630,2.08731895,1987.4,1986.7,6.81730453]
[1772555680935,0.00650674,1987.4,1986.7,7.27026394]
[1772555681126,0.00650674,1987.4,1986.8,6.56]
[1772555681333,2.08081221,1987.7,1986.9,0.25164]
[1772555681626,2.08081221,1987.7,1986.9,0.71220549]
[1772555681832,2.08081221,1988.0,1987.1,0.71217549]
[1772555682530,2.08494866,1988.0,1987.1,0.71217549]
[1772555683035,2.08494866,1988.0,1987.2,0.45646732]
[1772555683228,2.08494866,1988.0,1987.2,7.01646732]
[1772555683627,0.00413645,1988.0,1987.3,0.70440705]
[1772555683838,0.00413645,1988.0,1987.5,0.70491291]
[1772555684136,2.08081221,1988.3,1987.5,0.70491291]
[1772555684338,2.08081221,1988.3,1987.5,6.81056]
[1772555685029,2.08662845,1988.3,1986.9,3.12503106]
[1772555685236,2.08662845,1988.3,1987.0,7.24316777]
[1772555685438,2.08662845,1988.3,1987.0,0.25162]
[1772555686332,2.08662845,1988.3,1986.9,0.43212257]
[1772555686333,2.08662845,1988.3,1987.2,0.2516]
[1772555686935,2.08662845,1988.3,1986.7,0.25729453]
[1772555687134,2.08662845,1988.3,1986.7,6.81629453]
[1772555687340,2.08081221,1988.1,1986.7,0.00564453]
[1772555687533,2.08081221,1987.7,1985.7,0.25178]
[1772555687729,1.8894008,1986.9,1985.2,0.25185]
[1772555687934,3.12503106,1987.0,1985.2,13.41756962]
[1772555687935,1.8894008,1986.7,1985.2,13.41756962]
[1772555688136,1.8894008,1986.7,1985.2,7.22191962]
[1772555688337,1.8894008,1986.7,1985.0,6.19597]
[1772555688338,1.8894008,1986.7,1985.3,0.41294696]
[1772555688534,1.89548735,1986.7,1985.2,6.56447601]
[1772555688730,1.89548735,1986.7,1985.2,0.00547601]
[1772555689336,1.8894008,1986.5,1985.2,0.00547601]
[1772555692136,1.8894008,1986.5,1985.3,0.6469539]
[1772555692638,1.8894008,1986.5,1985.3,0.25184]
[1772555693040,1.8894008,1986.5,1985.3,0.65341969]
[1772555693237,1.8894008,1986.5,1985.5,6.84396838]
[1772555693440,1.8894008,1986.5,1985.5,13.40596838]
[1772555693744,1.8894008,1987.4,1986.5,6.58959924]
[1772555694341,1.8894008,1987.4,1986.5,0.64978924]
[1772555694542,1.8894008,1987.4,1986.1,0.25174]
[1772555694737,1.89528148,1987.4,1986.1,0.25174]
[1772555694942,1.89528148,1987.4,1986.3,0.65138447]
[1772555695144,1.89528148,1987.4,1986.5,0.25169]
[1772555695645,0.00588068,1987.4,1986.7,0.64819031]
[1772555695841,0.00588068,1987.4,1986.7,0.65269269]
[1772555696251,1.8894008,1988.0,1987.0,0.3865173]
[1772555697044,1.8894008,1988.0,1986.9,0.25164]
[1772555697248,1.89552484,1988.0,1986.9,0.25164]
[1772555697746,1.89552484,1988.0,1986.7,0.00450238]
[1772555698946,1.89552484,1988.0,1986.8,0.25165]
[1772555699145,1.89552484,1988.0,1986.8,0.62771903]
[1772555699347,1.89552484,1988.0,1987.0,0.62356527]
[1772555699547,1.89552484,1988.0,1987.0,0.25162]
[1772555699749,1.89552484,1988.0,1986.7,0.00450238]
[1772555700148,1.8894008,1987.9,1986.7,0.00450238]
[1772555700348,1.8894008,1987.7,1986.7,0.00450238]
[1772555700552,1.8894008,1987.7,1986.8,0.25165]
[1772555702251,1.8894008,1987.7,1986.8,0.60645533]
[1772555702551,1.89552484,1988.0,1987.2,0.25159]
[1772555703251,0.00612404,1988.0,1987.3,0.5438122]
[1772555703452,0.00612404,1988.0,1987.4,0.25157]
[1772555703647,0.00612404,1988.0,1987.0,6.19]
[1772555703648,1.89552484,1988.0,1986.9,0.25163]
[1772555703843,1.89552484,1988.0,1986.7,0.00450238]
[1772555704448,1.89552484,1988.0,1986.9,0.54014783]
[1772555704644,1.89552484,1988.0,1987.0,0.25162]